bitfinex/quotes_BTCUSD_20250803
["timestamp","ask_amount","ask_price","bid_price","bid_amount"]
[1754181532350,0.39539368,112540.0,112530.0,0.019073]
[1754181533059,0.34319368,112540.0,112530.0,0.019073]
[1754181533306,0.00014368,112540.0,112530.0,0.07309462]
[1754181533529,0.00014368,112540.0,112530.0,0.16172746]
[1754181533747,0.01405373,112540.0,112530.0,0.15950584]
[1754181533967,0.00014368,112540.0,112530.0,0.15950584]
[1754181534836,0.00014368,112540.0,112530.0,0.16272746]
[1754181535051,0.00014368,112540.0,112530.0,0.22630579]
[1754181535268,0.00014368,112540.0,112530.0,0.15950584]
[1754181535481,0.00014368,112540.0,112530.0,0.18275911]
[1754181535699,0.00014368,112540.0,112530.0,0.27133744]
[1754181535926,0.00014368,112540.0,112530.0,0.20570911]
[1754181536371,0.00014368,112540.0,112530.0,0.22608417]
[1754181536593,0.00014368,112540.0,112530.0,0.26928744]
[1754181537024,0.00014368,112540.0,112530.0,0.26628744]
[1754181537298,0.00014368,112540.0,112530.0,0.20570911]
[1754181537503,0.00014368,112540.0,112530.0,0.20775911]
[1754181538124,0.00014368,112540.0,112530.0,0.21175911]
[1754181538341,0.00014368,112540.0,112530.0,0.36179432]
[1754181538601,0.0139081,112560.0,112540.0,0.01820327]
[1754181538800,0.0170416,112570.0,112550.0,0.37514905]
[1754181539013,0.0170416,112570.0,112550.0,0.33980082]
[1754181539220,0.02524945,112570.0,112560.0,0.2186]
[1754181539425,0.02524945,112570.0,112560.0,0.32630584]
[1754181539630,0.02524945,112570.0,112560.0,0.30723284]
[1754181540279,0.02524945,112570.0,112560.0,0.30928284]
[1754181540488,0.02524945,112570.0,112560.0,0.33428284]
[1754181540914,0.02524945,112570.0,112560.0,0.35248611]
[1754181541141,0.02525504,112570.0,112560.0,0.35248611]
[1754181541347,0.02525504,112570.0,112560.0,0.35448611]
[1754181541561,0.02525504,112570.0,112560.0,0.19008611]
[1754181541770,0.02525504,112570.0,112560.0,0.16103611]
[1754181541981,0.08127504,112570.0,112560.0,0.25543284]
[1754181542439,0.08127504,112570.0,112560.0,0.08863284]
[1754181542648,0.08127504,112570.0,112560.0,0.16696]
[1754181543066,0.02525504,112570.0,112560.0,0.25559284]
[1754181543276,0.02525504,112570.0,112560.0,0.31315284]
[1754181543483,0.02525504,112570.0,112560.0,0.31515284]
[1754181543733,0.0252585,112570.0,112560.0,0.31520284]
[1754181543930,0.0252585,112570.0,112560.0,0.35340611]
[1754181544148,0.0282585,112570.0,112560.0,0.32639611]
[1754181544348,0.0282585,112570.0,112560.0,0.31019284]
[1754181544560,0.0252585,112570.0,112560.0,0.32839611]
[1754181544775,0.0252585,112570.0,112560.0,0.35139611]
[1754181545020,0.0252585,112570.0,112560.0,0.35239611]
[1754181545230,0.01578656,112570.0,112560.0,0.35844611]
[1754181545648,0.00756966,112570.0,112560.0,0.35844611]
[1754181546070,0.00756966,112570.0,112560.0,0.7905045]
[1754181546334,0.00756966,112570.0,112560.0,0.35744611]
[1754181546531,0.00756966,112570.0,112560.0,0.35344611]
[1754181546958,0.00756966,112570.0,112560.0,0.35808611]
[1754181547380,0.00756966,112570.0,112560.0,0.7871445]
[1754181547613,0.00756966,112570.0,112560.0,0.7851445]
[1754181547825,0.00756966,112570.0,112560.0,0.7901445]
[1754181548047,0.00756966,112570.0,112560.0,0.36208611]
[1754181548466,0.00756966,112570.0,112560.0,0.7941445]
[1754181548683,6e-05,112590.0,112580.0,0.04320327]
[1754181548918,0.00841489,112590.0,112580.0,0.30093675]
[1754181549126,0.00841489,112590.0,112580.0,0.29871611]
[1754181549343,0.00841489,112590.0,112580.0,0.35296611]
[1754181549559,0.00020352,112590.0,112580.0,0.35296611]
[1754181549782,0.00020352,112590.0,112580.0,0.7850245]
[1754181550011,0.00020352,112590.0,112580.0,1.1174345]
[1754181550302,0.00020352,112590.0,112580.0,1.04511352]
[1754181550514,0.00020352,112590.0,112580.0,1.38111352]
[1754181550936,0.00020352,112590.0,112580.0,0.97869874]
[1754181551152,0.00020352,112590.0,112580.0,1.39111352]
[1754181551368,0.00020352,112590.0,112580.0,1.38611352]
[1754181551573,0.00020352,112590.0,112580.0,1.38711352]
[1754181551779,0.00020352,112590.0,112580.0,1.41375713]
[1754181552025,0.00020352,112590.0,112580.0,1.39411352]
[1754181552494,0.00020352,112590.0,112580.0,1.48788352]
[1754181552929,0.00020352,112590.0,112580.0,1.48188352]
[1754181553366,0.00020352,112590.0,112580.0,1.47888352]
[1754181553831,0.00020352,112590.0,112580.0,1.50652713]
[1754181554131,0.00020352,112590.0,112580.0,0.22308611]
[1754181554302,0.00322352,112590.0,112580.0,0.12563284]
[1754181554550,0.05622352,112590.0,112580.0,0.26723284]
[1754181555019,0.05622352,112590.0,112580.0,0.09263284]
[1754181555263,0.07367254,112590.0,112580.0,0.004]
[1754181555517,0.07367254,112590.0,112580.0,0.00075]
[1754181555518,0.08269219,112590.0,112580.0,0.00075]
[1754181555792,0.08269219,112590.0,112570.0,0.16696]
[1754181556042,0.02667219,112590.0,112570.0,0.16696]
[1754181556260,0.01744902,112570.0,112560.0,0.0004]
[1754181556770,0.07346902,112570.0,112560.0,0.0004]
[1754181557422,0.07346902,112570.0,112560.0,0.00262103]
[1754181557637,0.05602,112570.0,112560.0,0.09225387]
[1754181557867,0.05602,112570.0,112560.0,0.09003284]
[1754181558089,0.07346902,112570.0,112560.0,0.0014]
[1754181558310,2.49281,112550.0,112500.0,0.07071198]
[1754181558523,0.05602,112540.0,112510.0,0.35634813]
[1754181558734,0.053,112540.0,112520.0,0.04320327]
[1754181558946,0.053,112550.0,112530.0,0.09085446]
[1754181559365,0.05602,112540.0,112530.0,0.16930162]
[1754181559581,0.07346902,112540.0,112510.0,0.16708]
[1754181559816,0.07346902,112530.0,112520.0,0.00014368]
[1754181561169,0.07346902,112530.0,112520.0,0.00314368]
[1754181561380,0.08026575,112530.0,112520.0,0.00314368]
[1754181561860,0.08026575,112530.0,112520.0,0.00414368]
[1754181562084,2.91307575,112530.0,112520.0,0.00414368]
[1754181562308,0.20410497,112510.0,112460.0,0.15841556]
[1754181562517,0.02424575,112470.0,112460.0,0.15841556]
[1754181562731,2.57529867,112470.0,112460.0,0.15841556]
[1754181562987,2.91307575,112470.0,112460.0,0.15841556]
[1754181563176,2.91307575,112470.0,112440.0,0.15841556]
[1754181563400,0.36424575,112450.0,112440.0,0.15841556]
[1754181563832,0.42026575,112450.0,112420.0,0.20753475]
[1754181564049,0.36424575,112450.0,112440.0,0.00047899]
[1754181564283,0.02424575,112450.0,112440.0,0.00047899]
[1754181564719,0.08026575,112450.0,112440.0,0.00047899]
[1754181564951,0.08026575,112450.0,112440.0,0.00247899]
[1754181565882,2.91307575,112450.0,112440.0,0.00247899]
[1754181566110,0.42026575,112450.0,112440.0,0.00047899]
[1754181566781,0.053,112450.0,112440.0,0.00047899]
[1754181566994,0.00679673,112460.0,112440.0,0.00047899]
[1754181567225,0.05617,112460.0,112440.0,0.00047899]
[1754181567439,0.05999673,112460.0,112440.0,0.00047899]
[1754181567651,0.06296673,112460.0,112440.0,0.00147899]
[1754181567860,0.06296673,112460.0,112440.0,0.00047899]
[1754181568287,0.34976673,112460.0,112440.0,0.00047899]
[1754181568508,0.0532,112460.0,112440.0,0.08911183]
[1754181568729,0.0532,112460.0,112450.0,0.00222321]
[1754181569383,0.0532,112460.0,112440.0,0.09111183]
[1754181570254,0.0532,112450.0,112440.0,0.00147899]
[1754181570475,0.05617,112450.0,112440.0,0.00247899]
[1754181570689,0.05617,112450.0,112440.0,0.00147899]
[1754181571144,0.05617,112450.0,112440.0,0.00047899]
[1754181571360,0.0532,112450.0,112440.0,0.00047899]
[1754181571583,0.0532,112450.0,112440.0,0.00147899]
[1754181571804,0.00297,112490.0,112450.0,0.01744902]
[1754181572042,0.00976673,112510.0,112460.0,0.33842585]
[1754181572261,0.0532,112520.0,112470.0,0.01967183]
[1754181572480,0.0532,112520.0,112480.0,0.11898545]
[1754181572689,0.0532,112520.0,112490.0,0.22273]
[1754181572913,0.08047871,112530.0,112500.0,0.09085506]
[1754181573124,0.0532,112540.0,112500.0,0.14814506]
[1754181573372,0.08194643,112540.0,112500.0,0.14814506]
[1754181573585,0.0532,112530.0,112500.0,0.14814506]
[1754181573797,0.0721797,112530.0,112500.0,0.14814506]
[1754181574008,0.0721797,112530.0,112510.0,0.08229]
[1754181574009,0.00014341,112530.0,112510.0,0.08229]
[1754181574229,0.00014341,112530.0,112520.0,0.09085466]
[1754181574448,0.0532,112520.0,112510.0,0.16516]
[1754181574652,0.05617,112520.0,112500.0,0.16508]
[1754181574878,0.00297,112520.0,112500.0,0.16508]
[1754181575096,0.05617,112520.0,112500.0,0.16508]
[1754181575534,0.05617,112520.0,112480.0,0.28857902]
[1754181575751,0.05617,112520.0,112490.0,0.16504]
[1754181575752,0.05617,112510.0,112490.0,0.16504]
[1754181576061,0.00297,112510.0,112490.0,0.165]
[1754181576145,0.06311014,112530.0,112500.0,0.00222222]
[1754181576366,0.05617,112520.0,112500.0,0.00222222]
[1754181576587,0.0532,112520.0,112500.0,0.00222222]
[1754181576838,0.001,112520.0,112500.0,0.14814506]
[1754181577093,0.05717,112520.0,112500.0,0.08863284]
[1754181577607,0.05617,112520.0,112500.0,0.08863284]
[1754181577849,0.00297,112520.0,112480.0,0.24197]
[1754181578090,0.00916306,112530.0,112500.0,0.165]
[1754181578091,0.00014341,112530.0,112500.0,0.165]
[1754181578338,0.00014341,112530.0,112510.0,0.09085486]
[1754181578585,0.00014341,112530.0,112510.0,0.14814486]
[1754181578835,0.05631341,112530.0,112510.0,0.08863284]
[1754181579076,0.00014341,112530.0,112520.0,0.16472]
[1754181579801,0.00014341,112530.0,112520.0,0.16694182]
[1754181580034,0.00014341,112530.0,112520.0,0.33031368]
[1754181580255,0.00014341,112530.0,112520.0,0.32809186]
[1754181580699,0.00014341,112530.0,112520.0,0.16437186]
[1754181580961,0.00014341,112530.0,112520.0,0.001]
[1754181581520,0.05334341,112530.0,112520.0,0.05951182]
[1754181581521,0.00014341,112530.0,112520.0,0.05951182]
[1754181581803,0.00014341,112530.0,112520.0,0.15014466]
[1754181582029,0.00014341,112530.0,112520.0,0.17059368]
[1754181582310,0.00014341,112530.0,112520.0,0.11108186]
[1754181582790,0.00014341,112530.0,112520.0,0.005]
[1754181583029,0.05334341,112530.0,112520.0,0.003]
[1754181583224,0.05334341,112530.0,112520.0,0.00622182]
[1754181583225,0.00014341,112530.0,112520.0,0.00622182]
[1754181584313,0.00014341,112530.0,112520.0,0.02367084]
[1754181584519,0.00014341,112530.0,112520.0,0.16959368]
[1754181585775,0.00014341,112530.0,112520.0,0.11230368]
[1754181587868,0.05334341,112530.0,112520.0,0.00622182]
[1754181588086,0.05631341,112530.0,112520.0,0.004]
[1754181588294,0.40311014,112530.0,112520.0,0.004]
[1754181588992,0.4170221,112530.0,112520.0,0.004]
[1754181589205,0.06725537,112530.0,112510.0,0.16578202]
[1754181589413,0.35405537,112530.0,112510.0,0.22307202]
[1754181589637,0.01505537,112530.0,112520.0,0.16024186]
[1754181589871,0.01505537,112530.0,112520.0,0.16337186]
[1754181590093,0.01405537,112530.0,112520.0,0.16337186]
[1754181590323,0.01405537,112530.0,112520.0,0.10608186]
[1754181590759,0.00679673,112570.0,112520.0,0.18379695]
[1754181590962,0.00679673,112570.0,112540.0,0.01744902]
[1754181590963,0.01390956,112550.0,112540.0,0.01744902]
[1754181591185,0.01390956,112550.0,112540.0,0.16559329]
[1754181591390,0.01390956,112550.0,112540.0,0.16337186]
[1754181592727,0.01390956,112550.0,112540.0,0.16559329]
[1754181593215,0.01390956,112550.0,112540.0,0.16859329]
[1754181594485,0.00014349,112570.0,112540.0,0.16959329]
[1754181594690,0.00014349,112570.0,112560.0,0.01744902]
[1754181594871,0.00014349,112570.0,112560.0,0.01967005]
[1754181595359,0.00014349,112570.0,112560.0,0.07504005]
[1754181596226,0.01504944,112570.0,112560.0,0.07504005]
[1754181596728,0.00014349,112570.0,112560.0,0.07209005]
[1754181596928,0.05344,112580.0,112560.0,0.01744902]
[1754181597151,0.05444,112570.0,112560.0,0.18000902]
[1754181597827,0.05344,112570.0,112550.0,0.01744902]
[1754181598056,0.07417049,112590.0,112560.0,0.00222103]
[1754181598299,0.07417049,112590.0,112560.0,0.07504005]
[1754181598300,0.01390668,112570.0,112560.0,0.07504005]
[1754181598513,0.10003048,112590.0,112560.0,0.07504005]
[1754181598737,0.00779673,112580.0,112560.0,0.07504005]
[1754181598956,0.001,112580.0,112560.0,0.07504005]
[1754181599173,0.00779673,112580.0,112560.0,0.07504005]
[1754181599603,0.01804091,112580.0,112560.0,0.07504005]
[1754181600525,0.01024418,112580.0,112560.0,0.07504005]
[1754181601676,0.01124418,112580.0,112550.0,0.00014349]
[1754181601857,2.49960673,112560.0,112550.0,0.00014349]
[1754181602134,0.34679673,112560.0,112550.0,0.00014349]
[1754181602590,0.00679673,112530.0,112490.0,0.12313198]
[1754181602812,0.06023673,112520.0,112490.0,0.14448183]
[1754181603055,0.06342673,112520.0,112500.0,0.16388]
[1754181603267,0.06342673,112520.0,112490.0,0.00047899]
[1754181603268,0.06023673,112510.0,112490.0,0.00047899]
[1754181603487,0.06023673,112510.0,112490.0,0.16427899]
[1754181603713,0.06023673,112510.0,112490.0,0.00047899]
[1754181603951,0.07734105,112510.0,112490.0,0.00447899]
[1754181604169,0.06342673,112510.0,112490.0,0.00447899]
[1754181604615,0.00679673,112510.0,112490.0,0.12878338]
[1754181604833,0.02071118,112520.0,112500.0,0.05464222]
[1754181605050,0.02071118,112520.0,112490.0,0.05584899]
[1754181605266,0.07415118,112520.0,112500.0,0.00222222]
[1754181605703,0.05663,112510.0,112500.0,0.00222222]
[1754181605931,0.06342673,112510.0,112490.0,0.00147899]
[1754181606145,0.00998673,112500.0,112490.0,0.00147899]
[1754181606362,0.01220965,112500.0,112490.0,0.00147899]
[1754181606595,0.01220965,112500.0,112490.0,0.00047899]
[1754181606828,0.41956559,112500.0,112490.0,0.00047899]
[1754181607049,0.41734267,112500.0,112490.0,0.00047899]
[1754181607952,0.07734267,112500.0,112490.0,0.00047899]
[1754181608197,0.07956559,112500.0,112490.0,0.00047899]
[1754181609087,0.07956559,112500.0,112490.0,0.00147899]
[1754181609549,0.07415267,112500.0,112490.0,0.00147899]
[1754181609767,0.07637559,112500.0,112490.0,0.00147899]
[1754181610001,0.07637559,112500.0,112490.0,0.00247899]
[1754181610450,0.07637559,112500.0,112490.0,0.00147899]
[1754181610682,0.01391594,112500.0,112490.0,0.00147899]
[1754181610900,0.36171267,112500.0,112490.0,0.0037014]
[1754181611153,0.35491594,112500.0,112490.0,0.0561214]
[1754181611396,0.35391594,112500.0,112490.0,0.05684899]
[1754181611655,0.41415267,112500.0,112490.0,0.00247899]
[1754181611893,0.07734267,112500.0,112490.0,0.00247899]
[1754181612131,0.57415267,112500.0,112490.0,0.00147899]
[1754181612374,0.02071267,112500.0,112490.0,0.00647899]
[1754181612859,0.01391594,112500.0,112490.0,0.05889899]
[1754181613098,0.01391594,112500.0,112490.0,0.0630714]
[1754181613561,0.01391594,112500.0,112490.0,0.0610714]
[1754181614005,0.07515267,112500.0,112490.0,0.00047899]
[1754181614249,0.07734267,112500.0,112490.0,0.00047899]
[1754181614493,0.06023673,112500.0,112490.0,0.00247899]
[1754181614717,0.00901965,112510.0,112490.0,0.00547899]
[1754181614943,0.00679673,112500.0,112490.0,0.00247899]
[1754181615161,0.06342673,112500.0,112490.0,0.00247899]
[1754181615386,0.06342673,112500.0,112490.0,0.00447899]
[1754181615607,0.06564965,112500.0,112490.0,0.00247899]
[1754181616044,0.05344,112500.0,112490.0,0.00247899]
[1754181616258,0.06023673,112500.0,112490.0,0.00247899]
[1754181616473,0.05344,112500.0,112490.0,0.00247899]
[1754181616689,0.06245965,112500.0,112490.0,0.00247899]
[1754181617139,0.06564965,112500.0,112490.0,0.00247899]
[1754181617634,0.06564965,112500.0,112490.0,0.00347899]
[1754181617859,0.06564965,112500.0,112490.0,0.00247899]
[1754181618089,0.06564965,112500.0,112490.0,0.00347899]
[1754181618560,0.06245965,112500.0,112490.0,0.00347899]
[1754181618786,0.07637577,112500.0,112490.0,0.00147899]
[1754181619273,0.07637577,112500.0,112490.0,0.00247899]
[1754181619509,0.07956577,112500.0,112490.0,0.00147899]
[1754181620435,3.09346479,112500.0,112490.0,0.00147899]
[1754181620650,3.09124187,112500.0,112490.0,0.00147899]
[1754181621162,3.27751964,112500.0,112490.0,0.00147899]
[1754181621385,3.27751964,112500.0,112490.0,0.00047899]
[1754181621602,3.09974187,112500.0,112490.0,0.00047899]
[1754181621833,3.08529285,112500.0,112490.0,0.00047899]
[1754181622070,3.26307062,112500.0,112490.0,0.00047899]
[1754181622309,3.27951964,112500.0,112490.0,0.00047899]
[1754181622503,3.08229285,112500.0,112490.0,0.00047899]
[1754181622755,3.08429285,112500.0,112490.0,0.00047899]
[1754181623242,3.08229285,112500.0,112490.0,0.00047899]
[1754181623950,3.09974187,112500.0,112490.0,0.00047899]
[1754181624236,3.10274187,112500.0,112490.0,0.00047899]
[1754181624487,3.26660352,112500.0,112490.0,0.00047899]
[1754181624760,3.26860352,112500.0,112490.0,0.00047899]
[1754181626556,3.28507182,112500.0,112490.0,0.00047899]
[1754181627491,3.28507182,112500.0,112450.0,0.07071198]
[1754181627492,0.34679673,112460.0,112450.0,0.07071198]
[1754181627888,0.68767774,112460.0,112450.0,0.07071198]
[1754181628095,0.00679673,112440.0,112430.0,0.07071198]
[1754181628306,0.00901965,112440.0,112430.0,0.07071198]
[1754181628745,0.00910449,112440.0,112430.0,0.12449198]
[1754181628950,0.00910449,112440.0,112430.0,0.05378]
[1754181629159,0.34910449,112440.0,112430.0,0.05378]
[1754181629383,0.34688157,112440.0,112430.0,0.05678]
[1754181629996,0.34688157,112440.0,112430.0,0.05378]
[1754181630212,0.00688157,112440.0,112430.0,0.05378]
[1754181630419,0.34688157,112440.0,112430.0,0.05378]
[1754181630642,0.0140079,112440.0,112430.0,0.05378]
[1754181630853,0.0140079,112440.0,112430.0,0.0560036]
[1754181631308,0.0140079,112440.0,112430.0,0.0580036]
[1754181631925,0.0140079,112440.0,112430.0,0.0560036]
[1754181632134,0.0140079,112440.0,112430.0,0.0590036]
[1754181632758,0.0140079,112440.0,112430.0,0.0560036]
[1754181632976,0.0140079,112440.0,112430.0,0.0600036]
[1754181633620,0.0140079,112440.0,112430.0,0.05778]
[1754181636522,0.0140079,112440.0,112430.0,0.14641284]
[1754181636986,0.0140079,112440.0,112430.0,0.15986186]
[1754181637218,0.0140079,112440.0,112430.0,0.32682186]
[1754181637432,0.0140079,112440.0,112430.0,0.33282186]
[1754181637666,0.0140079,112440.0,112430.0,0.35782186]
[1754181637904,0.0140079,112440.0,112430.0,0.37602513]
[1754181638152,0.00679673,112490.0,112450.0,0.01744902]
[1754181638370,0.00826819,112490.0,112460.0,0.25277585]
[1754181638597,0.01653603,112490.0,112470.0,0.05378]
[1754181638828,0.00826819,112490.0,112480.0,0.00534261]
[1754181639050,0.02480422,112490.0,112480.0,0.00534261]
[1754181639271,0.02480422,112490.0,112480.0,0.05600261]
[1754181639715,0.02480836,112490.0,112480.0,0.05378]
[1754181639937,0.02480836,112490.0,112480.0,0.05600261]
[1754181640597,0.02480836,112490.0,112480.0,0.06200261]
[1754181640822,0.02480836,112490.0,112480.0,0.15063545]
[1754181641102,0.02480836,112490.0,112480.0,0.16808447]
[1754181641318,0.00047884,112500.0,112480.0,0.16586186]
[1754181641539,0.00047884,112500.0,112490.0,0.14241284]
[1754181641985,0.00047884,112500.0,112490.0,0.14463525]
[1754181642216,0.00047884,112500.0,112490.0,0.14241284]
[1754181642466,0.00047884,112500.0,112490.0,0.05378]
[1754181642925,0.00727557,112500.0,112480.0,0.21218]
[1754181643150,0.00727557,112500.0,112490.0,0.004]
[1754181644277,0.00727557,112500.0,112490.0,0.005]
[1754181644520,0.00047884,112500.0,112490.0,0.06100241]
[1754181645187,0.00047884,112500.0,112490.0,0.00722241]
[1754181645441,0.08662169,112500.0,112490.0,0.005]
[1754181645654,0.42662169,112500.0,112490.0,0.005]
[1754181645916,0.42439877,112500.0,112490.0,0.005]
[1754181646142,0.4193183,112500.0,112490.0,0.004]
[1754181646357,0.4383696,112500.0,112490.0,0.004]
[1754181646603,0.00679673,112470.0,112460.0,0.05066]
[1754181647470,0.00679673,112470.0,112450.0,0.00312]
[1754181647705,0.00679673,112460.0,112440.0,0.21434]
[1754181648576,0.02071714,112460.0,112440.0,0.21434]
[1754181648961,0.02071714,112460.0,112450.0,0.05066]
[1754181649382,0.02071714,112460.0,112450.0,0.05378]
[1754181649598,0.36071714,112460.0,112450.0,0.05600321]
[1754181649810,0.36071714,112460.0,112450.0,0.05378]
[1754181650729,0.02071714,112460.0,112450.0,0.05378]
[1754181650952,0.36071714,112460.0,112450.0,0.05378]
[1754181651169,0.36071714,112460.0,112450.0,0.05678]
[1754181652093,0.36071714,112460.0,112450.0,0.003]
[1754181652570,0.41302714,112460.0,112450.0,0.003]
[1754181653300,0.42957211,112460.0,112450.0,0.003]
[1754181653530,0.41302714,112460.0,112450.0,0.003]
[1754181653758,0.36071714,112460.0,112450.0,0.003]
[1754181654397,0.05541241,112490.0,112450.0,0.16286186]
[1754181654607,0.0190613,112490.0,112470.0,0.07071198]
[1754181654818,0.00679673,112500.0,112480.0,0.05600261]
[1754181655027,0.00679673,112500.0,112480.0,0.00534261]
[1754181655241,0.00679673,112500.0,112490.0,0.05287]
[1754181655670,0.02585949,112520.0,112490.0,0.14454284]
[1754181655876,0.04115734,112520.0,112500.0,0.05591]
[1754181656102,0.40069894,112520.0,112500.0,0.05591]
[1754181656299,0.36633833,112520.0,112500.0,0.05591]
[1754181656507,0.02633833,112520.0,112500.0,0.05591]
[1754181656720,0.00727557,112520.0,112500.0,0.05591]
[1754181656930,0.34727557,112520.0,112500.0,0.05591]
[1754181657139,0.36633833,112520.0,112500.0,0.05391]
[1754181657360,0.36118935,112520.0,112500.0,0.05391]
[1754181657771,0.36118935,112520.0,112500.0,0.05491]
[1754181659221,0.52074935,112520.0,112500.0,0.05491]
[1754181659639,0.55244037,112520.0,112500.0,0.05491]
[1754181660332,0.00679673,112510.0,112500.0,0.001]
[1754181661098,0.00679673,112500.0,112490.0,0.21259]
[1754181661321,0.00679673,112500.0,112490.0,0.15972]
[1754181661573,0.72254673,112500.0,112460.0,0.05287]
[1754181661790,0.00679673,112470.0,112440.0,0.05287]
[1754181662034,0.34679673,112460.0,112440.0,0.05287]
[1754181662238,0.34679673,112460.0,112440.0,0.05591]
[1754181663156,0.41436714,112460.0,112440.0,0.05301341]
[1754181663387,0.41750714,112460.0,112440.0,0.00014341]
[1754181663637,0.06044673,112450.0,112440.0,0.00014341]
[1754181663854,0.06358673,112450.0,112440.0,0.00014341]
[1754181664081,0.56314673,112450.0,112440.0,0.00014341]
[1754181664272,0.56314673,112450.0,112440.0,0.00114341]
[1754181664545,0.40358673,112450.0,112440.0,0.00014341]
[1754181664776,0.34679673,112450.0,112440.0,0.05605341]
[1754181665024,0.34,112450.0,112440.0,0.05705341]
[1754181665271,0.34,112450.0,112440.0,0.05605341]
[1754181665668,0.34,112450.0,112440.0,0.05827681]
[1754181665899,0.34,112450.0,112440.0,0.05605341]
[1754181666607,0.35392133,112450.0,112440.0,0.05605341]
[1754181666824,0.35492133,112450.0,112440.0,0.05301341]
[1754181667046,0.35392133,112450.0,112440.0,0.05301341]
[1754181667524,0.35392133,112450.0,112440.0,0.05705341]
[1754181667740,0.35492133,112450.0,112440.0,0.05401341]
[1754181668183,0.35392133,112450.0,112440.0,0.05605341]
[1754181668627,0.35392133,112450.0,112440.0,0.06105341]
[1754181669322,0.01392133,112450.0,112440.0,0.14968625]
[1754181669548,0.16068,112480.0,112440.0,0.14968625]
[1754181669812,0.01392011,112470.0,112450.0,0.09085605]
[1754181670066,0.01392011,112470.0,112460.0,0.05591]
[1754181670309,0.01392011,112470.0,112460.0,0.14454284]
[1754181671493,0.01392011,112470.0,112460.0,0.14854284]
[1754181671712,0.01392011,112470.0,112460.0,0.15054284]
[1754181672428,0.01392011,112470.0,112460.0,0.006]
[1754181672867,0.02071684,112470.0,112460.0,0.006]
[1754181673137,0.07750684,112470.0,112460.0,0.006]
[1754181673548,0.07750684,112470.0,112460.0,0.004]
[1754181673762,0.07750684,112470.0,112450.0,0.05287]
[1754181673967,0.07750684,112470.0,112460.0,0.001]
[1754181674408,0.07972976,112470.0,112440.0,0.16386341]
[1754181674616,0.08072976,112470.0,112440.0,0.30536625]
[1754181674822,0.06680965,112470.0,112440.0,0.30536625]
[1754181675532,0.001,112470.0,112450.0,0.05813321]
[1754181675773,0.16647673,112480.0,112460.0,0.00526301]
[1754181676010,0.15968,112480.0,112460.0,0.05813301]
[1754181676243,0.16647673,112480.0,112460.0,0.05813301]
[1754181677203,0.00679673,112480.0,112460.0,0.05813301]
[1754181677444,0.34679673,112480.0,112460.0,0.05813301]
[1754181677670,0.52011505,112480.0,112460.0,0.05813301]
[1754181680350,0.17967505,112480.0,112460.0,0.05813301]
[1754181680557,0.01391832,112480.0,112460.0,0.05813301]
[1754181680778,0.51947505,112480.0,112460.0,0.05813301]
[1754181681033,0.36071505,112480.0,112460.0,0.05813301]
[1754181681484,0.35391832,112480.0,112460.0,0.05813301]
[1754181681701,0.34,112470.0,112460.0,0.14454284]
[1754181681932,0.34,112470.0,112460.0,0.14676585]
[1754181682153,0.01391832,112480.0,112460.0,0.14676585]
[1754181682385,0.01391832,112480.0,112470.0,0.14454284]
[1754181682618,0.15932,112510.0,112470.0,0.39198384]
[1754181682848,0.01391575,112500.0,112480.0,0.00222261]
[1754181683090,0.01391575,112500.0,112490.0,0.08863284]
[1754181683515,0.01391575,112500.0,112490.0,0.14454284]
[1754181684184,0.00047884,112500.0,112490.0,0.14454284]
[1754181684405,0.00047884,112500.0,112490.0,0.14654284]
[1754181684868,0.00047884,112500.0,112490.0,0.14954284]
[1754181685295,0.01439299,112500.0,112490.0,0.14954284]
[1754181685965,0.00047884,112500.0,112490.0,0.14954284]
[1754181687561,0.01439274,112500.0,112490.0,0.14954284]
[1754181687798,0.01439274,112500.0,112490.0,0.30826284]
[1754181689017,0.00047884,112500.0,112490.0,0.35071186]
[1754181689985,0.00047884,112500.0,112490.0,0.30878284]
[1754181690206,0.00047884,112500.0,112490.0,0.14954284]
[1754181690418,0.00047884,112500.0,112490.0,0.30878284]
[1754181691065,0.00047884,112500.0,112490.0,0.33378284]
[1754181691714,0.00047884,112500.0,112490.0,0.30878284]
[1754181691918,0.00047884,112500.0,112490.0,0.33378284]
[1754181692337,0.00047884,112500.0,112490.0,0.30878284]
[1754181692561,0.00047884,112500.0,112490.0,0.30574284]
[1754181692765,0.00047884,112500.0,112490.0,0.25287284]
[1754181693183,0.00047884,112500.0,112490.0,0.30432284]
[1754181693552,0.11230216,112520.0,112490.0,0.30432284]
[1754181693766,0.11230216,112520.0,112500.0,0.00222222]
[1754181693985,0.11230216,112520.0,112490.0,0.30446625]
[1754181693986,0.05576,112510.0,112490.0,0.30146625]
[1754181694172,0.05576,112510.0,112490.0,0.25301625]
[1754181694370,0.00304,112500.0,112490.0,0.16414341]
[1754181694582,0.00304,112500.0,112490.0,0.16114341]
[1754181695048,0.01695444,112500.0,112490.0,0.00214341]
[1754181695257,0.07647117,112500.0,112490.0,0.00214341]
[1754181696045,0.07869409,112500.0,112490.0,0.00214341]
[1754181697144,0.07869409,112500.0,112490.0,0.00314341]
[1754181697350,0.07869409,112500.0,112490.0,0.00014341]
[1754181698732,0.01391444,112500.0,112490.0,0.00014341]
[1754181698942,0.02071117,112500.0,112490.0,0.00014341]
[1754181700304,0.02071117,112500.0,112490.0,0.00114341]
[1754181700711,0.02071117,112500.0,112490.0,0.05259341]
[1754181701055,0.02071117,112500.0,112490.0,0.05059341]
[1754181701487,0.02071117,112500.0,112490.0,0.00214341]
[1754181703413,0.02071117,112500.0,112490.0,0.05059341]
[1754181704085,0.01391444,112500.0,112490.0,0.14222625]
[1754181704325,0.37583185,112520.0,112490.0,0.14222625]
[1754181704526,0.37583185,112520.0,112500.0,0.00222222]
[1754181704740,0.34679673,112520.0,112500.0,0.05367222]
[1754181704956,0.00679673,112530.0,112510.0,0.00522202]
[1754181705395,0.04240319,112530.0,112510.0,0.05367202]
[1754181705601,0.001,112520.0,112510.0,0.05367202]
[1754181706256,0.001,112520.0,112510.0,0.14230486]
[1754181707119,0.002,112520.0,112510.0,0.14230486]
[1754181707336,0.0008,112520.0,112510.0,0.29784284]
[1754181707784,0.0008,112520.0,112510.0,0.29884284]
[1754181708006,0.01391365,112540.0,112510.0,0.29884284]
[1754181708231,0.01391365,112540.0,112520.0,0.08863284]
[1754181708449,0.001,112530.0,112520.0,0.08863284]
[1754181708875,0.01391365,112540.0,112520.0,0.08863284]
[1754181709132,0.01391365,112540.0,112530.0,0.15752]
[1754181709332,0.01391365,112540.0,112530.0,0.29760284]
[1754181711293,0.01391365,112540.0,112530.0,0.29960284]
[1754181712597,0.01391365,112540.0,112530.0,0.30160284]
[1754181713909,0.05576,112570.0,112540.0,0.01744902]
[1754181714140,0.00014367,112570.0,112550.0,0.09085407]
[1754181714355,0.00014367,112570.0,112550.0,0.25061407]
[1754181714590,0.00014367,112570.0,112560.0,0.04845]